bitfinex-derivatives/quotes_SOLF0:USTF0_20241011
["timestamp","ask_amount","ask_price","bid_price","bid_amount"]
[1728677191331,3.56612,145.31,145.28,3.4417]
[1728677191520,3.56612,145.31,145.29,8.46]
[1728677191827,3.56612,145.31,145.28,11.9017]
[1728677192128,11.9014,145.3,145.26,8.7021]
[1728677192329,8.46,145.29,145.26,8.7021]
[1728677193023,8.46,145.29,145.26,5.26]
[1728677193223,11.9017,145.29,145.26,5.26]
[1728677193829,3.4417,145.29,145.26,13.72]
[1728677194627,3.4417,145.29,145.26,17.1622]
[1728677194831,0.12502,145.31,145.27,8.46]
[1728677195025,3.4414,145.3,145.28,8.46]
[1728677195226,0.12502,145.31,145.28,8.46]
[1728677195937,3.56622,145.31,145.28,11.9016]
[1728677196232,0.12502,145.31,145.28,11.9016]
[1728677196933,0.12502,145.31,145.3,3.4413]
[1728677197123,0.12502,145.31,145.3,8.7013]
[1728677197734,0.12502,145.31,145.3,12.10288293]
[1728677198430,0.12502,145.37,145.33,3.4405]
[1728677198632,0.12502,145.37,145.33,11.9005]
[1728677199028,3.56472,145.37,145.33,11.9005]
[1728677201233,3.56472,145.37,145.34,5.24]
[1728677203337,3.4401,145.35,145.34,5.24]
[1728677203840,8.46,145.36,145.31,17.1409]
[1728677204235,3.4403,145.34,145.31,17.1409]
[1728677207536,8.46,145.35,145.3,3.40158293]
[1728677207734,0.12502,145.37,145.3,5.24]
[1728677207735,3.4409,145.32,145.3,5.24]
[1728677208241,3.4407,145.33,145.3,13.7]
[1728677209133,3.4743722,145.36,145.31,8.46]
[1728677209134,3.4404,145.34,145.31,8.46]
[1728677211745,3.4404,145.34,145.31,11.901]
[1728677212440,3.4406,145.33,145.31,8.46]
[1728677212636,11.90319847,145.36,145.3,5.24]
[1728677212843,8.46,145.35,145.3,13.7]
[1728677213041,8.46,145.35,145.3,5.24]
[1728677213441,8.46,145.34,145.28,15.2805557]
[1728677213640,8.46,145.34,145.29,5.24]
[1728677214045,3.4409,145.32,145.29,5.24]
[1728677214239,11.89046755,145.34,145.29,5.24]
[1728677215246,3.4411,145.31,145.29,5.24]
[1728677218547,3.4411,145.31,145.28,13.7]
[1728677222041,1.3431,145.35,145.3,8.46]
[1728677222244,8.46,145.36,145.31,8.46]
[1728677222547,3.4405,145.34,145.31,8.46]
[1728677222848,11.86192704,145.36,145.3,3.4411]
[1728677223052,3.4407,145.33,145.31,8.46]
[1728677224444,8.46,145.33,145.26,3.35522746]
[1728677224645,8.46,145.32,145.27,5.24]
[1728677224849,3.4414,145.3,145.27,8.6819]
[1728677225152,8.46,145.32,145.26,13.7]
[1728677225650,3.4417,145.29,145.26,17.1421]
[1728677229244,1.3666,145.33,145.24,3.50271795]
[1728677229245,8.46,145.28,145.24,5.24]
[1728677229445,8.46,145.31,145.26,8.46]
[1728677229644,3.4414,145.3,145.26,11.902]
[1728677231248,3.4414,145.3,145.26,8.46]
[1728677231453,1.3666,145.33,145.28,8.46]
[1728677231648,3.4411,145.31,145.28,8.46]
[1728677231852,3.4411,145.31,145.28,13.7]
[1728677232151,8.46,145.32,145.28,13.7]
[1728677232450,3.4415,145.29,145.28,5.24]
[1728677232752,3.4415,145.29,145.25,17.26732]
[1728677233253,3.4419,145.28,145.25,17.26732]
[1728677234051,3.442,145.27,145.25,13.82502]
[1728677234647,8.46,145.31,145.25,13.82502]
[1728677234853,3.4419,145.28,145.25,17.26742]
[1728677236955,3.4419,145.28,145.25,13.82502]
[1728677237354,3.4421,145.27,145.25,13.82502]
[1728677238453,3.4421,145.27,145.25,8.58502]
[1728677239151,8.46,145.3,145.25,8.58502]
[1728677239345,3.4422,145.26,145.25,0.12502]
[1728677242260,6.82256278,145.26,145.25,0.12502]
[1728677242763,15.28256278,145.26,145.25,0.12502]
[1728677243360,3.4422,145.26,145.25,0.12502]
[1728677243958,15.31287125,145.26,145.25,0.12502]
[1728677246358,11.9022,145.26,145.25,0.12502]
[1728677247055,15.33145989,145.26,145.25,0.12502]
[1728677247254,11.9022,145.26,145.25,0.12502]
[1728677247461,3.4422,145.26,145.25,0.12502]
[1728677256070,15.26318051,145.26,145.25,0.12502]
[1728677265071,3.4435,145.21,145.18,3.444]
[1728677265277,3.4435,145.21,145.19,5.36502]
[1728677265980,3.4435,145.21,145.19,0.12502]
[1728677267277,3.4436,145.2,145.19,0.12502]
[1728677274388,8.46,145.22,145.19,0.12502]
[1728677274389,3.4435,145.21,145.19,0.12502]
[1728677274891,3.4436,145.2,145.19,0.12502]
[1728677281605,11.9036,145.2,145.19,0.12502]
[1728677282901,3.4436,145.2,145.19,0.12502]
[1728677283109,11.9036,145.2,145.19,0.12502]
[1728677283406,3.4436,145.21,145.19,0.12502]
[1728677283701,3.4436,145.21,145.19,8.58502]
[1728677284506,3.4436,145.21,145.19,0.12502]
[1728677284906,3.4436,145.2,145.19,0.12502]
[1728677285097,11.9036,145.2,145.19,0.12502]
[1728677289311,3.4436,145.2,145.19,0.12502]
[1728677293214,11.9036,145.2,145.19,0.12502]
[1728677300717,3.4451,145.14,145.13,0.12502]
[1728677301421,3.4449,145.15,145.13,0.12502]
[1728677301916,8.46,145.17,145.13,0.12502]
[1728677304220,3.4446,145.16,145.13,0.12502]
[1728677304419,8.46,145.17,145.13,0.12502]
[1728677304723,3.4448,145.15,145.13,0.12502]
[1728677306520,3.4447,145.16,145.13,3.57032]
[1728677308324,8.46,145.17,145.13,3.57032]
[1728677308526,3.4446,145.16,145.13,3.57032]
[1728677309123,3.4448,145.15,145.13,0.12502]
[1728677311022,11.93158112,145.17,145.13,0.12502]
[1728677312230,3.4449,145.15,145.13,0.12502]
[1728677313725,8.46,145.17,145.13,0.12502]
[1728677314026,3.4445,145.17,145.14,11.9051]
[1728677315931,3.444,145.19,145.16,3.4446]
[1728677316536,3.444,145.19,145.16,8.46]
[1728677316824,3.444,145.19,145.17,3.4444]
[1728677320038,3.444,145.19,145.16,8.46]
[1728677320230,3.444,145.19,145.16,11.9045]
[1728677321335,11.9043,145.18,145.15,3.4447]
[1728677321534,8.46,145.18,145.14,16.3864]
[1728677322635,3.4444,145.17,145.14,19.8313]
[1728677325333,8.46,145.19,145.14,16.3864]
[1728677325532,3.4442,145.18,145.15,3.4448]
[1728677325732,3.4442,145.18,145.15,11.9048]
[1728677330636,5.24,145.23,145.15,8.46]
[1728677330836,3.4438,145.2,145.16,11.9044]
[1728677332441,8.46,145.21,145.16,11.9044]
[1728677332640,3.4439,145.19,145.16,11.9044]
[1728677333941,3.4439,145.19,145.16,3.4444]
[1728677334247,3.4441,145.18,145.15,3.4447]
[1728677334738,3.4441,145.18,145.15,11.9047]
[1728677342644,3.4435,145.21,145.16,3.4445]
[1728677342951,5.24,145.23,145.14,7.9264]
[1728677342952,13.7,145.23,145.17,8.46]
[1728677343353,3.4437,145.2,145.17,11.9042]
[1728677346256,8.46,145.21,145.17,11.9042]
[1728677346457,3.4439,145.19,145.17,11.9042]
[1728677346849,8.46,145.19,145.14,2.6864]
[1728677347046,8.46,145.17,145.13,0.12502]
[1728677347452,3.445,145.15,145.13,0.12502]
[1728677348169,3.445,145.15,145.13,8.58502]
[1728677348868,3.4447,145.16,145.13,8.58502]
[1728677351166,3.4447,145.16,145.14,8.46]
[1728677351366,1.3534,145.19,145.14,8.46]
[1728677351565,3.4445,145.17,145.14,8.46]
[1728677354277,3.4442,145.18,145.15,11.9046]
[1728677354675,3.4442,145.18,145.15,8.46]
[1728677354881,3.4442,145.18,145.16,3.4446]
[1728677355174,1.3534,145.19,145.15,8.46]
[1728677355381,4.7974,145.19,145.15,11.9047]
[1728677356276,4.7974,145.19,145.15,8.46]
[1728677356468,4.7974,145.19,145.16,3.4446]
[1728677356679,1.3534,145.19,145.16,3.4446]
[1728677356979,11.9038,145.2,145.16,3.4446]
[1728677361176,11.9038,145.2,145.16,8.46]
[1728677361377,3.4438,145.2,145.17,3.4443]
[1728677361782,3.4435,145.21,145.18,3.4441]
[1728677361976,11.9035,145.21,145.18,3.4441]
[1728677362980,3.4435,145.21,145.18,3.4441]
[1728677363279,3.4432,145.22,145.19,11.9037]
[1728677365689,0.12502,145.25,145.21,8.46]
[1728677365880,8.58502,145.25,145.21,8.46]
[1728677366281,8.58502,145.25,145.2,8.46]
[1728677367388,3.4427,145.24,145.21,3.4433]
[1728677367588,0.12502,145.25,145.21,11.9033]
[1728677368189,3.56762,145.25,145.21,11.9033]
[1728677368989,0.12502,145.25,145.21,11.9033]
[1728677369285,3.4427,145.24,145.21,11.9033]
[1728677370489,3.4427,145.24,145.21,8.46]
[1728677370689,3.4427,145.24,145.22,3.4431]
[1728677371493,3.56762,145.25,145.22,3.4431]
[1728677372188,3.4427,145.24,145.2,5.24]
[1728677372385,3.4427,145.24,145.21,3.4433]
[1728677376992,3.4427,145.24,145.2,13.7]
[1728677377292,3.4427,145.24,145.22,3.4431]
[1728677387998,3.4431,145.23,145.2,8.6836]
[1728677388198,3.4431,145.23,145.2,17.1436]
[1728677389001,3.4432,145.22,145.2,5.24]
[1728677390506,3.4432,145.22,145.2,8.6836]
[1728677390900,3.443,145.23,145.2,17.1436]
[1728677391402,3.443,145.23,145.2,11.9036]
[1728677397800,3.4428,145.24,145.21,11.9032]
[1728677400707,3.4432,145.22,145.2,3.4436]
[1728677400906,8.58502,145.25,145.2,3.4436]
[1728677401105,3.443,145.23,145.2,11.9036]
[1728677403413,3.4432,145.22,145.2,11.9036]
[1728677405609,3.443,145.23,145.2,11.9036]
[1728677412914,8.58502,145.25,145.2,8.46]
[1728677413115,3.4433,145.22,145.19,17.1238]
[1728677414925,3.4433,145.22,145.19,11.9038]
[1728677417926,3.4433,145.22,145.2,3.4436]
[1728677419529,0.12502,145.25,145.19,8.46]
[1728677419720,8.58502,145.25,145.19,8.46]
[1728677420230,8.58502,145.25,145.2,3.4435]
[1728677420623,3.4432,145.23,145.2,3.4435]
[1728677422523,8.58502,145.25,145.2,3.4435]
[1728677422729,3.443,145.23,145.2,3.4435]
[1728677424029,3.4432,145.22,145.2,3.4435]
[1728677425226,3.38141509,145.24,145.2,3.4435]
[1728677425434,3.4431,145.23,145.2,3.4435]
[1728677427240,0.12502,145.25,145.19,8.46]
[1728677427445,3.56752,145.25,145.22,11.903]
[1728677428747,0.12502,145.25,145.22,11.903]
[1728677429045,3.4428,145.24,145.22,11.903]
[1728677429444,3.56752,145.25,145.23,3.4429]
[1728677433546,3.56752,145.25,145.22,11.9031]
[1728677433755,11.9031,145.23,145.19,2.7047]
[1728677433950,8.46,145.21,145.18,3.444]
[1728677434150,11.9038,145.2,145.17,5.22]
[1728677434550,8.46,145.2,145.16,8.6645]
[1728677434844,3.444,145.19,145.16,8.6645]
[1728677435953,11.9037,145.2,145.17,3.4442]
[1728677438251,8.46,145.2,145.17,3.4442]
[1728677438450,3.4439,145.19,145.17,3.4442]
[1728677438962,11.9038,145.2,145.17,3.4442]
[1728677441655,3.4438,145.2,145.17,11.9042]
[1728677442757,3.48268172,145.22,145.17,8.46]
[1728677442953,0.12502,145.25,145.21,8.46]
[1728677443154,0.12502,145.25,145.23,8.46]
[1728677443955,0.12502,145.25,145.23,11.9028]
[1728677444157,0.12502,145.25,145.23,3.4428]
[1728677445161,3.56752,145.25,145.23,3.4428]
[1728677446164,3.56752,145.25,145.22,11.9031]
[1728677449663,3.56752,145.25,145.22,3.4431]
[1728677449867,3.4428,145.24,145.21,11.9033]
[1728677450261,3.4428,145.24,145.21,3.4433]
[1728677450468,3.4428,145.24,145.21,8.46]
[1728677450665,3.4428,145.24,145.22,3.4432]
[1728677452969,0.12502,145.25,145.22,11.9032]
[1728677453162,3.56752,145.25,145.22,11.9032]
[1728677461161,8.58502,145.25,145.2,5.22]
[1728677461365,3.4429,145.24,145.21,3.4434]
[1728677461673,3.4429,145.24,145.21,11.9034]
[1728677463878,3.56762,145.25,145.23,8.46]
[1728677464478,3.56762,145.25,145.23,11.9029]
[1728677465376,3.56762,145.25,145.2,7.9698]
[1728677465377,0.12502,145.25,145.24,8.46]
[1728677465571,0.12502,145.25,145.24,11.9027]
[1728677466872,0.12502,145.25,145.24,8.46]
[1728677469780,0.12502,145.25,145.24,11.9027]
[1728677469974,0.12502,145.25,145.24,17.1227]
[1728677470782,0.12502,145.25,145.24,13.68]
[1728677471481,103.35804519,145.27,145.24,13.68]
[1728677471681,0.12502,145.31,145.27,3.442]
[1728677471879,0.12502,145.31,145.3,8.46]
[1728677488391,0.12502,145.31,145.3,11.9013]
[1728677490789,3.4404,145.34,145.31,3.4409]
[1728677490994,3.4404,145.34,145.33,8.46]
[1728677492285,3.4401,145.35,145.33,8.46]
[1728677492591,3.4401,145.35,145.34,8.46]
[1728677497694,3.4401,145.35,145.32,8.6407]
[1728677497904,3.4405,145.34,145.32,13.66]
[1728677501804,3.4405,145.34,145.33,8.46]
[1728677503598,0.12502,145.37,145.28,3.36715702]
[1728677503911,8.46,145.34,145.29,8.46]
[1728677504208,5.2,145.36,145.32,8.46]
[1728677504598,3.4406,145.33,145.32,8.46]
[1728677518423,3.4404,145.34,145.32,8.46]
[1728677518624,3.4404,145.34,145.33,8.46]
[1728677519118,3.44,145.36,145.33,8.46]
[1728677519317,0.12502,145.37,145.36,8.46]
[1728677520123,3.56472,145.37,145.36,8.46]
[1728677521719,0.12502,145.37,145.32,5.2]
[1728677522019,3.4406,145.33,145.32,5.2]
[1728677522823,3.4409,145.32,145.3,8.46]
[1728677523516,8.46,145.34,145.29,13.66]
[1728677523923,8.46,145.34,145.29,5.2]
[1728677524227,8.46,145.34,145.29,13.66]
[1728677524424,3.4412,145.31,145.29,13.66]
[1728677524723,5.2,145.36,145.27,5.2]
[1728677524923,3.4413,145.3,145.27,5.2]
[1728677525228,8.46,145.31,145.27,5.2]
[1728677525427,11.9424501,145.31,145.27,5.2]
[1728677525627,3.442,145.27,145.25,5.32502]
[1728677528226,3.442,145.27,145.25,13.78502]
[1728677530024,3.442,145.27,145.26,8.46]
[1728677530623,8.46,145.3,145.26,8.46]
[1728677530929,3.4417,145.29,145.27,8.46]
[1728677531628,3.4414,145.3,145.27,11.902]
[1728677531823,3.4414,145.3,145.28,8.46]
[1728677537125,3.4414,145.3,145.27,3.442]
[1728677537325,3.4414,145.3,145.27,11.902]
[1728677537529,3.51828391,145.31,145.27,11.902]
[1728677537828,3.4418,145.28,145.26,8.46]
[1728677538022,8.46,145.31,145.26,8.46]
[1728677538226,3.4422,145.27,145.25,0.12502]
[1728677538833,3.4418,145.28,145.25,12.02742]
[1728677540233,8.46,145.29,145.25,3.56742]
[1728677540431,3.442,145.27,145.25,12.02742]
[1728677540933,11.89188442,145.31,145.25,12.02742]
[1728677541136,3.4419,145.28,145.25,12.02742]
[1728677545338,11.89188442,145.31,145.25,0.12502]
[1728677545541,3.4421,145.27,145.25,8.58502]
[1728677545933,11.89188442,145.31,145.25,8.58502]
[1728677546134,3.4418,145.28,145.26,8.46]
[1728677548441,3.4418,145.28,145.27,8.46]
[1728677548738,3.4418,145.28,145.26,8.46]
[1728677550731,3.4418,145.28,145.25,3.56732]
[1728677551043,3.4418,145.28,145.25,12.02732]
[1728677552244,3.442,145.27,145.25,12.02732]
[1728677553236,8.46,145.3,145.28,3.4417]
[1728677553237,3.4413,145.3,145.28,3.4417]
[1728677553437,8.46,145.33,145.28,11.9017]
[1728677554040,11.96909261,145.33,145.28,11.9017]
[1728677554649,3.4412,145.31,145.28,11.9017]
[1728677557642,3.4413,145.3,145.28,11.9017]
[1728677559546,3.4413,145.3,145.28,8.46]
[1728677560253,3.4413,145.3,145.28,11.9017]
[1728677560644,8.46,145.32,145.28,11.9017]
[1728677560844,3.4412,145.31,145.28,11.9017]
[1728677561051,3.4412,145.31,145.28,17.0817]
[1728677562251,3.4409,145.32,145.3,8.46]
[1728677564348,3.4407,145.33,145.3,11.9012]
[1728677565044,11.86949759,145.35,145.3,8.46]
[1728677565852,8.46,145.34,145.3,8.46]
[1728677566552,3.441,145.31,145.3,8.46]
[1728677570955,3.4409,145.32,145.3,8.46]
[1728677574262,3.4413,145.3,145.28,5.18]
[1728677574452,8.46,145.32,145.28,5.18]
[1728677575155,3.4414,145.3,145.28,5.18]
[1728677575860,8.46,145.32,145.28,5.18]
[1728677576254,8.46,145.3,145.26,3.4421]
[1728677576563,3.4418,145.28,145.25,8.58502]
[1728677577253,3.4418,145.28,145.25,12.02742]
[1728677579066,3.4422,145.26,145.25,0.12502]
[1728677582065,3.4422,145.26,145.25,8.58502]
[1728677582570,3.4421,145.27,145.25,8.58502]
[1728677584071,3.4422,145.26,145.25,0.12502]
[1728677592078,3.442,145.28,145.25,3.56742]
[1728677592380,8.46,145.3,145.25,3.56742]
[1728677592574,8.46,145.3,145.26,8.46]
[1728677593078,3.4416,145.29,145.26,8.46]
[1728677593377,8.46,145.3,145.26,8.46]
[1728677594477,3.442,145.27,145.26,8.46]
[1728677596576,8.46,145.3,145.26,8.46]
[1728677596577,3.4418,145.28,145.26,8.46]
[1728677597580,3.4417,145.29,145.27,8.46]
[1728677597777,1.3901,145.31,145.27,8.46]
[1728677598173,3.4416,145.29,145.27,8.46]
[1728677603589,1.3901,145.31,145.27,8.46]
[1728677603786,3.4414,145.3,145.28,8.46]
[1728677605489,3.4414,145.3,145.28,11.9017]
[1728677605698,11.96309704,145.33,145.28,11.9017]
[1728677605988,3.4412,145.31,145.29,8.46]
[1728677606189,13.64,145.34,145.29,11.9014]
[1728677606394,3.4409,145.32,145.29,11.9014]
[1728677607399,17.1203854,145.34,145.29,11.9014]
[1728677607602,3.441,145.31,145.29,11.9014]
[1728677611804,3.441,145.31,145.29,8.46]
[1728677629525,8.46,145.33,145.26,2.6582]
[1728677629718,8.46,145.3,145.25,5.28502]
[1728677630119,3.4419,145.28,145.25,8.72732]
[1728677630419,3.4419,145.28,145.25,3.56732]
[1728677630624,3.4419,145.28,145.25,8.72732]
[1728677631327,11.8816483,145.3,145.25,0.12502]
[1728677631520,11.8816483,145.3,145.25,12.02742]
[1728677632321,3.4419,145.28,145.25,12.02742]
[1728677632628,3.4419,145.28,145.26,8.46]
[1728677640730,3.442,145.27,145.26,8.46]
[1728677641338,3.4419,145.28,145.26,8.46]
[1728677642335,3.442,145.27,145.26,8.46]
[1728677649240,3.4419,145.28,145.26,8.46]
[1728677649743,3.4419,145.28,145.26,11.9022]
[1728677649945,8.46,145.33,145.27,8.46]
[1728677650144,8.46,145.33,145.29,8.46]
[1728677650344,3.4414,145.3,145.29,8.46]
[1728677651543,3.4414,145.3,145.27,3.4418]
[1728677651741,3.4416,145.29,145.27,11.9018]
[1728677652445,3.4416,145.29,145.27,3.4418]
[1728677652638,3.4416,145.29,145.27,11.9018]
[1728677652836,3.442,145.28,145.26,5.16]
[1728677653039,8.46,145.31,145.26,5.16]
[1728677653242,8.46,145.29,145.26,5.16]
[1728677653545,8.46,145.28,145.25,0.12502]
[1728677654244,3.4422,145.26,145.25,0.12502]
[1728677656036,11.9022,145.26,145.25,0.12502]
[1728677656639,15.30150719,145.26,145.25,0.12502]
[1728677663656,6.84150719,145.26,145.25,0.12502]
[1728677664157,15.30150719,145.26,145.25,0.12502]
[1728677664749,3.4432,145.22,145.2,8.46]
[1728677664951,8.46,145.24,145.2,8.46]
[1728677665150,8.46,145.24,145.19,0.12502]
[1728677665363,3.4433,145.22,145.19,3.56882]
[1728677665847,3.4433,145.22,145.19,12.02882]
[1728677669255,3.4433,145.22,145.2,3.4436]
[1728677669458,3.4431,145.23,145.21,8.46]
[1728677670356,3.4431,145.23,145.21,11.9034]
[1728677671058,3.4431,145.23,145.21,8.46]
[1728677674863,8.46,145.25,145.2,11.9035]
[1728677675558,3.4432,145.23,145.2,11.9035]
[1728677675766,8.46,145.25,145.2,11.9035]
[1728677676262,3.4431,145.23,145.2,11.9035]
[1728677685964,4.71760719,145.26,145.21,8.46]
[1728677686164,3.4426,145.25,145.22,3.443]
[1728677689365,3.4429,145.24,145.21,3.4433]
[1728677689568,103.35213056,145.28,145.19,3.51745905]
[1728677689765,111.81213056,145.28,145.23,8.46]
[1728677690065,3.4422,145.27,145.24,11.9027]
[1728677690970,103.35213056,145.28,145.24,11.9027]
[1728677692174,3.4421,145.27,145.24,11.9027]
[1728677694567,0.12502,145.31,145.26,8.46]
[1728677694873,0.12502,145.31,145.29,8.46]
[1728677695274,3.4415,145.29,145.27,11.902]
[1728677697674,3.4415,145.29,145.27,8.46]
[1728677698978,3.4418,145.28,145.26,17.0621]
[1728677700081,3.4418,145.28,145.26,13.62]
[1728677700271,8.46,145.29,145.26,5.16]
[1728677700474,8.46,145.29,145.23,2.7622]
[1728677700475,8.46,145.27,145.23,16.3822]
[1728677701177,3.4424,145.26,145.23,19.825]
[1728677701895,3.4424,145.26,145.24,8.46]
[1728677702488,3.4425,145.25,145.23,19.825]
[1728677703392,3.4425,145.25,145.23,16.3822]
[1728677711589,3.4417,145.29,145.24,11.9027]
[1728677711796,14.9967,145.3,145.24,11.9027]
[1728677712294,3.4422,145.27,145.24,11.9027]
[1728677712698,14.9967,145.3,145.24,11.9027]
[1728677713590,14.9967,145.3,145.26,8.46]
[1728677713790,6.5367,145.3,145.26,8.46]
[1728677714292,3.4419,145.28,145.26,8.46]
[1728677714794,3.4416,145.29,145.27,8.46]
[1728677716499,3.4416,145.29,145.27,11.9019]
[1728677717998,3.4414,145.3,145.27,11.9019]
[1728677718300,0.12502,145.31,145.29,8.46]
[1728677718601,0.12502,145.31,145.3,8.46]
[1728677719590,3.56622,145.31,145.3,8.46]
[1728677720001,0.12502,145.31,145.3,8.46]
[1728677721004,0.12502,145.31,145.3,11.9013]
[1728677721307,0.12502,145.31,145.3,8.46]
[1728677721999,103.30315982,145.35,145.3,8.46]
[1728677722196,103.30315982,145.35,145.34,8.46]
[1728677724504,3.44,145.36,145.34,8.46]
[1728677725900,3.56482,145.37,145.34,11.9003]
[1728677726291,3.56482,145.37,145.35,8.46]
[1728677726494,0.12502,145.37,145.35,8.46]
[1728677726898,0.12502,145.37,145.36,8.46]
[1728677727098,0.12502,145.37,145.36,13.6]
[1728677727302,0.12502,145.37,145.36,17.0399]
[1728677727704,11.1662,145.44,145.36,16.97230225]
[1728677727912,3.4388,145.41,145.4,8.46]
[1728677729300,3.4385,145.42,145.4,8.46]
[1728677729502,3.4385,145.42,145.41,8.46]
[1728677730005,3.4384,145.42,145.41,8.46]
[1728677730212,9.8195,145.44,145.4,5.14]
[1728677730505,8.58502,145.43,145.4,5.14]
[1728677730901,8.46,145.41,145.34,1.3271]
[1728677731100,8.46,145.39,145.35,5.14]
[1728677731914,3.4394,145.38,145.35,5.14]
[1728677732299,3.4394,145.38,145.35,13.6]
[1728677733206,3.4394,145.38,145.35,5.14]
[1728677733404,3.4394,145.38,145.35,13.6]
[1728677735709,8.46,145.4,145.35,13.6]
[1728677736211,3.4396,145.38,145.35,13.6]
[1728677737007,3.4393,145.39,145.36,8.46]
[1728677738116,3.4393,145.39,145.37,8.46]
[1728677742221,3.4393,145.39,145.38,8.46]
[1728677744815,0.12502,145.43,145.38,8.46]
[1728677745023,3.4389,145.41,145.4,8.46]
[1728677745416,0.12502,145.43,145.4,8.46]
[1728677745616,3.56322,145.43,145.42,8.46]
[1728677748215,0.12502,145.43,145.39,5.14]
[1728677748417,3.4386,145.42,145.4,8.46]
[1728677751429,3.4386,145.42,145.41,8.46]
[1728677760432,0.12502,145.43,145.4,8.46]
[1728677760624,3.4388,145.41,145.4,8.46]
[1728677773547,0.12502,145.43,145.39,5.14]
[1728677773751,8.58502,145.43,145.38,5.14]
[1728677774050,8.46,145.42,145.38,13.6]
[1728677774847,3.4391,145.39,145.38,13.6]
[1728677778745,3.4391,145.39,145.38,8.46]
[1728677779151,3.439,145.4,145.38,8.46]
[1728677780947,3.439,145.4,145.39,8.46]
[1728677782749,3.4385,145.42,145.39,11.8991]
[1728677782951,3.4385,145.42,145.41,8.46]
[1728677783148,0.12502,145.43,145.41,8.46]
[1728677783356,0.12502,145.43,145.42,8.46]
[1728677783858,0.12502,145.43,145.42,11.8984]
[1728677787365,3.4378,145.45,145.42,11.8984]
[1728677787666,3.4374,145.47,145.44,8.46]
[1728677787864,3.4374,145.47,145.46,8.46]
[1728677789267,3.4371,145.48,145.46,8.46]
[1728677791164,0.12502,145.49,145.47,8.46]
[1728677791366,3.56192,145.49,145.47,8.46]
[1728677792069,0.12502,145.49,145.47,8.46]
[1728677793166,3.56202,145.49,145.47,8.46]
[1728677797467,3.437,145.48,145.47,8.46]
[1728677798274,3.437,145.48,145.45,8.5576]
[1728677798469,3.437,145.48,145.46,8.46]
[1728677798770,0.12502,145.49,145.46,8.46]
[1728677799078,3.4373,145.47,145.46,8.46]
[1728677800770,3.4371,145.48,145.46,8.46]
[1728677800976,3.4371,145.48,145.47,8.46]
[1728677816788,0.12502,145.49,145.47,8.46]
[1728677816984,0.12502,145.49,145.48,8.46]
[1728677818393,0.12502,145.49,145.48,11.897]
[1728677821694,3.4364,145.51,145.48,11.897]
[1728677821892,3.4364,145.51,145.5,8.46]
[1728677823294,3.4362,145.52,145.5,8.46]
[1728677823496,3.4362,145.52,145.51,8.46]
[1728677831396,8.58502,145.55,145.44,4.0641]
[1728677831696,8.46,145.54,145.5,8.46]
[1728677831903,8.46,145.53,145.44,4.0641]